[Event "Titled Tuesday Blitz August 08 Late 2023"]
[White "Krishnan, Varun"]
[Black "GAO"]
[WhiteFideId "5054508"]
[WhiteElo "2569"]
[BlackElo "2295"]
[Result "1-0"]
[Round "1"]
[TimeControl "180+1"]
[Date "2023.08.08"]
[WhiteClock "0:01:28"]
[BlackClock "0:01:57"]
[Board "144"]

1. d4 {[%clk 0:02:58]}  Nf6 {[%clk 0:02:58]} 2. c4 {[%clk 0:02:56]}  e6 {[%clk 0:02:59]} 3. Nf3 {[%clk 0:02:53]}  Bb4+ {[%clk 0:02:58]} 4. Nbd2 {[%clk 0:02:51]}  O-O {[%clk 0:02:55]} 5. e3 {[%clk 0:02:52]}  d6 {[%clk 0:02:55]} 6. Bd3 {[%clk 0:02:52]}  Nc6 {[%clk 0:02:51]} 7. O-O {[%clk 0:02:52]}  Bxd2 {[%clk 0:02:49]} 8. Bxd2 {[%clk 0:02:48]}  e5 {[%clk 0:02:49]} 9. d5 {[%clk 0:02:46]}  Ne7 {[%clk 0:02:48]} 10. e4 {[%clk 0:02:46]}  Nd7 {[%clk 0:02:48]} 11. b4 {[%clk 0:02:42]}  a5 {[%clk 0:02:48]} 12. a3 {[%clk 0:02:41]}  f5 {[%clk 0:02:46]} 13. Qc2 {[%clk 0:02:34]}  f4 {[%clk 0:02:28]} 14. c5 {[%clk 0:02:33]}  Nf6 {[%clk 0:02:25]} 15. Rfc1 {[%clk 0:02:10]}  Qe8 {[%clk 0:02:18]} 16. cxd6 {[%clk 0:02:07]}  cxd6 {[%clk 0:02:18]} 17. Qc7 {[%clk 0:02:06]}  Qh5 {[%clk 0:02:18]} 18. Qxe7 {[%clk 0:02:05]}  Bg4 {[%clk 0:02:15]} 19. Ne1 {[%clk 0:01:58]}  f3 {[%clk 0:02:15]} 20. g3 {[%clk 0:01:52]}  Qh3 {[%clk 0:02:12]} 21. Bf1 {[%clk 0:01:42]}  Qh5 {[%clk 0:02:11]} 22. Rc7 {[%clk 0:01:42]}  Ne8 {[%clk 0:02:09]} 23. Rxb7 {[%clk 0:01:39]}  axb4 {[%clk 0:02:06]} 24. Bxb4 {[%clk 0:01:36]}  Bh3 {[%clk 0:02:05]} 25. Bxh3 {[%clk 0:01:27]}  Qxh3 {[%clk 0:02:04]} 26. Qe6+ {[%clk 0:01:27]}  Qxe6 {[%clk 0:01:57]} 27. dxe6 {[%clk 0:01:28]} 1-0


[Site "https://www.chess.com"]

[Event "Titled Tuesday Blitz August 08 Late 2023"]
[White "Principe, Alexander"]
[Black "Ramadoss, Ashokkumar"]
[WhiteFideId "3804542"]
[BlackFideId "5040990"]
[WhiteElo "2565"]
[BlackElo "2295"]
[Result "1/2-1/2"]
[Round "1"]
[TimeControl "180+1"]
[Date "2023.08.08"]
[WhiteClock "0:00:12"]
[BlackClock "0:00:21"]
[Board "146"]

1. e4 {[%clk 0:02:59]}  e6 {[%clk 0:03:00]} 2. d4 {[%clk 0:02:56]}  d5 {[%clk 0:03:00]} 3. e5 {[%clk 0:02:56]}  c5 {[%clk 0:02:59]} 4. c3 {[%clk 0:02:45]}  Nc6 {[%clk 0:02:59]} 5. Nf3 {[%clk 0:02:45]}  Qb6 {[%clk 0:02:59]} 6. a3 {[%clk 0:02:36]}  Bd7 {[%clk 0:02:56]} 7. b4 {[%clk 0:02:10]}  cxd4 {[%clk 0:02:55]} 8. cxd4 {[%clk 0:02:10]}  Rc8 {[%clk 0:02:56]} 9. Bd3 {[%clk 0:02:08]}  Nh6 {[%clk 0:02:42]} 10. Bxh6 {[%clk 0:02:06]}  gxh6 {[%clk 0:02:42]} 11. Be2 {[%clk 0:02:05]}  a5 {[%clk 0:02:35]} 12. b5 {[%clk 0:02:05]}  Na7 {[%clk 0:02:34]} 13. a4 {[%clk 0:02:03]}  Bb4+ {[%clk 0:02:33]} 14. Nbd2 {[%clk 0:02:02]}  Qc7 {[%clk 0:02:03]} 15. O-O {[%clk 0:01:59]}  Qc2 {[%clk 0:02:03]} 16. Rc1 {[%clk 0:01:52]}  Qxd1 {[%clk 0:02:03]} 17. Rfxd1 {[%clk 0:01:53]}  Ke7 {[%clk 0:01:57]} 18. Nb3 {[%clk 0:01:49]}  Ba3 {[%clk 0:01:52]} 19. Ra1 {[%clk 0:01:46]}  Bb4 {[%clk 0:01:51]} 20. Rac1 {[%clk 0:01:41]}  Rxc1 {[%clk 0:01:47]} 21. Rxc1 {[%clk 0:01:40]}  Rc8 {[%clk 0:01:48]} 22. Rxc8 {[%clk 0:01:15]}  Nxc8 {[%clk 0:01:44]} 23. Bd1 {[%clk 0:01:16]}  Kd8 {[%clk 0:01:30]} 24. Nc5 {[%clk 0:01:10]}  Kc7 {[%clk 0:01:21]} 25. Kf1 {[%clk 0:01:03]}  Nb6 {[%clk 0:01:21]} 26. Bc2 {[%clk 0:01:01]}  Nc4 {[%clk 0:00:51]} 27. Bxh7 {[%clk 0:00:53]}  b6 {[%clk 0:00:51]} 28. Nxd7 {[%clk 0:00:47]}  Kxd7 {[%clk 0:00:51]} 29. Ke2 {[%clk 0:00:45]}  Ke7 {[%clk 0:00:41]} 30. Bd3 {[%clk 0:00:44]}  Nb2 {[%clk 0:00:39]} 31. Bc2 {[%clk 0:00:44]}  Nc4 {[%clk 0:00:39]} 32. h4 {[%clk 0:00:42]}  f6 {[%clk 0:00:39]} 33. exf6+ {[%clk 0:00:41]}  Kxf6 {[%clk 0:00:39]} 34. g4 {[%clk 0:00:41]}  e5 {[%clk 0:00:31]} 35. g5+ {[%clk 0:00:41]}  hxg5 {[%clk 0:00:31]} 36. hxg5+ {[%clk 0:00:42]}  Ke6 {[%clk 0:00:31]} 37. dxe5 {[%clk 0:00:35]}  Nxe5 {[%clk 0:00:31]} 38. Nd4+ {[%clk 0:00:35]}  Kf7 {[%clk 0:00:20]} 39. f4 {[%clk 0:00:36]}  Nd7 {[%clk 0:00:19]} 40. Bb3 {[%clk 0:00:35]}  Bd6 {[%clk 0:00:16]} 41. Bxd5+ {[%clk 0:00:34]}  Kg6 {[%clk 0:00:17]} 42. Be4+ {[%clk 0:00:34]}  Kh5 {[%clk 0:00:17]} 43. Kf3 {[%clk 0:00:35]}  Nc5 {[%clk 0:00:15]} 44. Nf5 {[%clk 0:00:34]}  Bf8 {[%clk 0:00:14]} 45. Bc2 {[%clk 0:00:33]}  Ne6 {[%clk 0:00:14]} 46. Ng3+ {[%clk 0:00:32]}  Kh4 {[%clk 0:00:13]} 47. g6 {[%clk 0:00:33]}  Nd4+ {[%clk 0:00:13]} 48. Kf2 {[%clk 0:00:30]}  Nxc2 {[%clk 0:00:14]} 49. g7 {[%clk 0:00:25]}  Bxg7 {[%clk 0:00:13]} 50. Nf5+ {[%clk 0:00:26]}  Kg4 {[%clk 0:00:14]} 51. Nxg7 {[%clk 0:00:27]}  Kxf4 {[%clk 0:00:15]} 52. Ke2 {[%clk 0:00:20]}  Ke4 {[%clk 0:00:15]} 53. Kd2 {[%clk 0:00:20]}  Nd4 {[%clk 0:00:15]} 54. Kc3 {[%clk 0:00:21]}  Kd5 {[%clk 0:00:16]} 55. Ne8 {[%clk 0:00:20]}  Kc5 {[%clk 0:00:16]} 56. Nf6 {[%clk 0:00:19]}  Nxb5+ {[%clk 0:00:17]} 57. axb5 {[%clk 0:00:19]}  Kxb5 {[%clk 0:00:17]} 58. Kb3 {[%clk 0:00:20]}  a4+ {[%clk 0:00:17]} 59. Ka3 {[%clk 0:00:21]}  Ka5 {[%clk 0:00:18]} 60. Nd5 {[%clk 0:00:13]}  b5 {[%clk 0:00:19]} 61. Nb4 {[%clk 0:00:13]}  Kb6 {[%clk 0:00:19]} 62. Nc2 {[%clk 0:00:08]}  Kc5 {[%clk 0:00:20]} 63. Nb4 {[%clk 0:00:09]}  Kc4 {[%clk 0:00:21]} 64. Na2 {[%clk 0:00:09]}  Kc5 {[%clk 0:00:19]} 65. Nb4 {[%clk 0:00:10]}  Kc4 {[%clk 0:00:20]} 66. Na2 {[%clk 0:00:11]}  Kc5 {[%clk 0:00:21]} 67. Nb4 {[%clk 0:00:12]} 1/2-1/2


[Site "https://www.chess.com"]

[Event "Titled Tuesday Blitz August 08 Late 2023"]
[White "Pert, Richard G"]
[Black "Vafin, Ayrat"]
[WhiteFideId "404748"]
[BlackFideId "4146530"]
[WhiteElo "2563"]
[BlackElo "2293"]
[Result "1-0"]
[Round "1"]
[TimeControl "180+1"]
[Date "2023.08.08"]
[WhiteClock "0:00:22"]
[BlackClock "0:00:29"]
[Board "148"]

1. d4 {[%clk 0:02:51]}  d5 {[%clk 0:02:59]} 2. Bg5 {[%clk 0:02:50]}  Nf6 {[%clk 0:02:59]} 3. Bxf6 {[%clk 0:02:41]}  exf6 {[%clk 0:03:00]} 4. e3 {[%clk 0:02:41]}  Be6 {[%clk 0:03:00]} 5. g3 {[%clk 0:02:40]}  c6 {[%clk 0:02:58]} 6. Bg2 {[%clk 0:02:40]}  f5 {[%clk 0:02:59]} 7. Ne2 {[%clk 0:02:40]}  Nd7 {[%clk 0:02:58]} 8. Nd2 {[%clk 0:02:40]}  Nf6 {[%clk 0:02:57]} 9. Nf4 {[%clk 0:02:39]}  Bd6 {[%clk 0:02:56]} 10. c4 {[%clk 0:02:37]}  dxc4 {[%clk 0:02:52]} 11. Nxe6 {[%clk 0:02:36]}  fxe6 {[%clk 0:02:51]} 12. Nxc4 {[%clk 0:02:37]}  Bb4+ {[%clk 0:02:49]} 13. Ke2 {[%clk 0:02:37]}  O-O {[%clk 0:02:19]} 14. Qb3 {[%clk 0:02:36]}  Qe7 {[%clk 0:02:19]} 15. Rhc1 {[%clk 0:02:23]}  Rab8 {[%clk 0:02:08]} 16. Kf1 {[%clk 0:02:20]}  Bd6 {[%clk 0:02:05]} 17. Nxd6 {[%clk 0:02:19]}  Qxd6 {[%clk 0:02:06]} 18. Kg1 {[%clk 0:02:13]}  Kh8 {[%clk 0:02:06]} 19. Rc5 {[%clk 0:02:10]}  Nd5 {[%clk 0:01:54]} 20. Rac1 {[%clk 0:02:07]}  Rfe8 {[%clk 0:01:50]} 21. a4 {[%clk 0:02:05]}  Nf6 {[%clk 0:01:41]} 22. a5 {[%clk 0:02:03]}  a6 {[%clk 0:01:41]} 23. Qc2 {[%clk 0:01:48]}  Nd7 {[%clk 0:01:28]} 24. Rc4 {[%clk 0:01:47]}  Rf8 {[%clk 0:01:26]} 25. Rd1 {[%clk 0:01:41]}  Nf6 {[%clk 0:01:23]} 26. h3 {[%clk 0:01:38]}  Rbd8 {[%clk 0:01:22]} 27. Rc5 {[%clk 0:01:33]}  Nd7 {[%clk 0:01:20]} 28. Rc3 {[%clk 0:01:32]}  Nf6 {[%clk 0:01:19]} 29. Rb3 {[%clk 0:01:31]}  Rd7 {[%clk 0:01:19]} 30. Rb6 {[%clk 0:01:30]}  Nd5 {[%clk 0:01:17]} 31. Rb3 {[%clk 0:01:19]}  Nf6 {[%clk 0:01:12]} 32. Rc1 {[%clk 0:01:19]}  Nd5 {[%clk 0:01:10]} 33. Qc5 {[%clk 0:01:08]}  Qxc5 {[%clk 0:01:09]} 34. Rxc5 {[%clk 0:01:09]}  Rff7 {[%clk 0:01:06]} 35. Bxd5 {[%clk 0:00:56]}  Rxd5 {[%clk 0:00:58]} 36. Rxc6 {[%clk 0:00:53]}  h6 {[%clk 0:00:59]} 37. Rc5 {[%clk 0:00:42]}  Rxc5 {[%clk 0:00:51]} 38. dxc5 {[%clk 0:00:43]}  Rc7 {[%clk 0:00:51]} 39. Rc3 {[%clk 0:00:39]}  Kg8 {[%clk 0:00:45]} 40. Kf1 {[%clk 0:00:38]}  Kf7 {[%clk 0:00:44]} 41. Ke2 {[%clk 0:00:39]}  e5 {[%clk 0:00:41]} 42. b4 {[%clk 0:00:34]}  e4 {[%clk 0:00:40]} 43. Rc2 {[%clk 0:00:31]}  Rd7 {[%clk 0:00:36]} 44. Rd2 {[%clk 0:00:31]}  Rxd2+ {[%clk 0:00:36]} 45. Kxd2 {[%clk 0:00:31]}  Ke6 {[%clk 0:00:37]} 46. Kc3 {[%clk 0:00:28]}  Kd5 {[%clk 0:00:35]} 47. h4 {[%clk 0:00:28]}  g6 {[%clk 0:00:33]} 48. Kb3 {[%clk 0:00:28]}  g5 {[%clk 0:00:32]} 49. hxg5 {[%clk 0:00:26]}  hxg5 {[%clk 0:00:33]} 50. Kc3 {[%clk 0:00:26]}  Ke5 {[%clk 0:00:28]} 51. Kc4 {[%clk 0:00:26]}  f4 {[%clk 0:00:29]} 52. gxf4+ {[%clk 0:00:23]}  gxf4 {[%clk 0:00:30]} 53. b5 {[%clk 0:00:22]}  axb5+ {[%clk 0:00:30]} 54. Kxb5 {[%clk 0:00:22]}  fxe3 {[%clk 0:00:29]} 55. fxe3 {[%clk 0:00:22]}  Kd5 {[%clk 0:00:29]} 56. Kb6 {[%clk 0:00:22]}  Kc4 {[%clk 0:00:25]} 57. Kxb7 {[%clk 0:00:21]}  Kd3 {[%clk 0:00:26]} 58. c6 {[%clk 0:00:21]}  Kxe3 {[%clk 0:00:27]} 59. c7 {[%clk 0:00:22]}  Kf2 {[%clk 0:00:28]} 60. c8=Q {[%clk 0:00:22]}  e3 {[%clk 0:00:28]} 61. Qf5+ {[%clk 0:00:22]}  Ke2 {[%clk 0:00:29]} 62. a6 {[%clk 0:00:22]}  Kd2 {[%clk 0:00:29]} 63. Qd5+ {[%clk 0:00:22]}  Kc2 {[%clk 0:00:29]} 64. Qe4+ {[%clk 0:00:22]}  Kd2 {[%clk 0:00:29]} 65. a7 {[%clk 0:00:22]}  e2 {[%clk 0:00:30]} 66. Qxe2+ {[%clk 0:00:21]}  Kxe2 {[%clk 0:00:29]} 67. a8=Q {[%clk 0:00:22]} 1-0


[Site "https://www.chess.com"]

[Event "Titled Tuesday Blitz August 08 Late 2023"]
[White "Rodriguez Santiago, Jaime"]
[Black "Mendez Fortes, Eduardo Jesus"]
[WhiteFideId "3100898"]
[BlackFideId "3502376"]
[WhiteElo "2290"]
[BlackElo "2561"]
[Result "0-1"]
[Round "1"]
[TimeControl "180+1"]
[Date "2023.08.08"]
[WhiteClock "0:00:22"]
[BlackClock "0:01:25"]
[Board "149"]

1. d4 {[%clk 0:02:59]}  Nf6 {[%clk 0:02:58]} 2. c4 {[%clk 0:02:59]}  e6 {[%clk 0:02:59]} 3. Nc3 {[%clk 0:02:58]}  Bb4 {[%clk 0:02:59]} 4. e3 {[%clk 0:02:58]}  O-O {[%clk 0:02:58]} 5. Ne2 {[%clk 0:02:58]}  Re8 {[%clk 0:02:57]} 6. a3 {[%clk 0:02:58]}  Bf8 {[%clk 0:02:58]} 7. Ng3 {[%clk 0:02:52]}  c5 {[%clk 0:02:56]} 8. Bd3 {[%clk 0:02:51]}  b6 {[%clk 0:02:54]} 9. O-O {[%clk 0:02:51]}  Bb7 {[%clk 0:02:53]} 10. d5 {[%clk 0:02:47]}  h6 {[%clk 0:02:49]} 11. e4 {[%clk 0:02:44]}  d6 {[%clk 0:02:48]} 12. h3 {[%clk 0:02:18]}  Nbd7 {[%clk 0:02:47]} 13. f4 {[%clk 0:02:08]}  a6 {[%clk 0:02:44]} 14. b3 {[%clk 0:02:06]}  Rc8 {[%clk 0:02:43]} 15. Bb2 {[%clk 0:02:06]}  e5 {[%clk 0:02:43]} 16. Nce2 {[%clk 0:01:48]}  exf4 {[%clk 0:02:41]} 17. Rxf4 {[%clk 0:01:42]}  Ne5 {[%clk 0:02:41]} 18. Bc2 {[%clk 0:01:40]}  g6 {[%clk 0:02:37]} 19. Qd2 {[%clk 0:01:23]}  Bg7 {[%clk 0:02:36]} 20. Raf1 {[%clk 0:01:21]}  Nfd7 {[%clk 0:02:35]} 21. Nc1 {[%clk 0:01:14]}  Rf8 {[%clk 0:02:26]} 22. Bb1 {[%clk 0:01:12]}  Qg5 {[%clk 0:02:19]} 23. Qf2 {[%clk 0:01:00]}  h5 {[%clk 0:02:14]} 24. h4 {[%clk 0:00:59]}  Qe7 {[%clk 0:02:13]} 25. Nf5 {[%clk 0:00:49]}  gxf5 {[%clk 0:02:07]} 26. exf5 {[%clk 0:00:49]}  Ng4 {[%clk 0:02:04]} 27. Qc2 {[%clk 0:00:44]}  Ndf6 {[%clk 0:01:40]} 28. Qd3 {[%clk 0:00:33]}  Qe3+ {[%clk 0:01:34]} 29. Qxe3 {[%clk 0:00:33]}  Nxe3 {[%clk 0:01:35]} 30. Re1 {[%clk 0:00:32]}  Rfe8 {[%clk 0:01:34]} 31. Nd3 {[%clk 0:00:28]}  Neg4 {[%clk 0:01:33]} 32. Rxe8+ {[%clk 0:00:27]}  Rxe8 {[%clk 0:01:32]} 33. Kf1 {[%clk 0:00:27]}  Bh6 {[%clk 0:01:25]} 34. Rf3 {[%clk 0:00:22]}  Nh2+ {[%clk 0:01:25]} 0-1


[Site "https://www.chess.com"]

[Event "Titled Tuesday Blitz August 08 Late 2023"]
[White "Graif, William"]
[Black "The_Straightforward_Rook"]
[WhiteFideId "2609835"]
[WhiteElo "2557"]
[BlackElo "2270"]
[Result "1-0"]
[Round "1"]
[TimeControl "180+1"]
[Date "2023.08.08"]
[WhiteClock "0:00:08"]
[BlackClock "0:00:00"]
[Board "154"]

1. e4 {[%clk 0:02:55]}  e5 {[%clk 0:02:58]} 2. Nf3 {[%clk 0:02:54]}  Nc6 {[%clk 0:02:58]} 3. d4 {[%clk 0:02:54]}  exd4 {[%clk 0:02:59]} 4. c3 {[%clk 0:02:54]}  d5 {[%clk 0:02:51]} 5. Bd3 {[%clk 0:02:53]}  Nf6 {[%clk 0:02:45]} 6. e5 {[%clk 0:02:49]}  Ne4 {[%clk 0:02:45]} 7. O-O {[%clk 0:02:48]}  Bg4 {[%clk 0:02:43]} 8. Re1 {[%clk 0:02:05]}  Nc5 {[%clk 0:02:34]} 9. Bb5 {[%clk 0:01:48]}  d3 {[%clk 0:02:24]} 10. b4 {[%clk 0:01:38]}  Ne6 {[%clk 0:02:16]} 11. Qxd3 {[%clk 0:01:24]}  Be7 {[%clk 0:02:11]} 12. Ba4 {[%clk 0:01:17]}  O-O {[%clk 0:01:57]} 13. Bc2 {[%clk 0:00:52]}  g6 {[%clk 0:01:56]} 14. Bh6 {[%clk 0:00:49]}  Re8 {[%clk 0:01:41]} 15. Qe3 {[%clk 0:00:24]}  d4 {[%clk 0:01:33]} 16. Nxd4 {[%clk 0:00:22]}  Ncxd4 {[%clk 0:01:30]} 17. cxd4 {[%clk 0:00:22]}  Qxd4 {[%clk 0:01:26]} 18. Nc3 {[%clk 0:00:16]}  Bxb4 {[%clk 0:01:23]} 19. Nb5 {[%clk 0:00:07]}  Qc4 {[%clk 0:01:09]} 20. Bd3 {[%clk 0:00:06]}  Qd5 {[%clk 0:00:48]} 21. Reb1 {[%clk 0:00:06]}  Bc5 {[%clk 0:00:46]} 22. Qg3 {[%clk 0:00:07]}  Ng7 {[%clk 0:00:22]} 23. Qxg4 {[%clk 0:00:06]}  Qxd3 {[%clk 0:00:22]} 24. Nxc7 {[%clk 0:00:06]}  Nf5 {[%clk 0:00:18]} 25. Nxa8 {[%clk 0:00:05]}  Nxh6 {[%clk 0:00:18]} 26. Qf4 {[%clk 0:00:05]}  Nf5 {[%clk 0:00:16]} 27. Nc7 {[%clk 0:00:06]}  Bb6 {[%clk 0:00:16]} 28. Rd1 {[%clk 0:00:05]}  Qc3 {[%clk 0:00:14]} 29. Nd5 {[%clk 0:00:06]}  Qc5 {[%clk 0:00:13]} 30. Nf6+ {[%clk 0:00:06]}  Kf8 {[%clk 0:00:12]} 31. Nxe8 {[%clk 0:00:07]}  Kxe8 {[%clk 0:00:13]} 32. e6 {[%clk 0:00:07]}  fxe6 {[%clk 0:00:13]} 33. Rac1 {[%clk 0:00:07]}  Qe7 {[%clk 0:00:11]} 34. Re1 {[%clk 0:00:07]}  Kf7 {[%clk 0:00:11]} 35. h3 {[%clk 0:00:07]}  Bd4 {[%clk 0:00:08]} 36. g4 {[%clk 0:00:07]}  e5 {[%clk 0:00:05]} 37. Qf3 {[%clk 0:00:08]}  Qg5 {[%clk 0:00:00]} 38. Kh1 {[%clk 0:00:08]} 1-0


[Site "https://www.chess.com"]

[Event "Titled Tuesday Blitz August 08 Late 2023"]
[White "Shapiro, Viktor"]
[Black "Ward, Ieuan C"]
[WhiteFideId "4175700"]
[BlackFideId "406627"]
[WhiteElo "2554"]
[BlackElo "2252"]
[Result "1-0"]
[Round "1"]
[TimeControl "180+1"]
[Date "2023.08.08"]
[WhiteClock "0:02:36"]
[BlackClock "0:02:38"]
[Board "158"]

1. c4 {[%clk 0:03:00]}  e5 {[%clk 0:02:58]} 2. Nc3 {[%clk 0:03:01]}  Nc6 {[%clk 0:02:58]} 3. g3 {[%clk 0:03:01]}  g6 {[%clk 0:02:59]} 4. Bg2 {[%clk 0:03:02]}  Bg7 {[%clk 0:02:59]} 5. Nf3 {[%clk 0:03:02]}  Nge7 {[%clk 0:02:59]} 6. O-O {[%clk 0:03:02]}  d6 {[%clk 0:03:00]} 7. d3 {[%clk 0:03:03]}  O-O {[%clk 0:03:00]} 8. Rb1 {[%clk 0:03:03]}  Be6 {[%clk 0:02:59]} 9. b4 {[%clk 0:03:03]}  Qd7 {[%clk 0:02:58]} 10. b5 {[%clk 0:03:03]}  Nd8 {[%clk 0:02:58]} 11. Ng5 {[%clk 0:03:03]}  Bg4 {[%clk 0:02:54]} 12. h3 {[%clk 0:03:02]}  Bf5 {[%clk 0:02:53]} 13. e4 {[%clk 0:03:01]}  Be6 {[%clk 0:02:54]} 14. Nd5 {[%clk 0:03:00]}  Nc8 {[%clk 0:02:49]} 15. f4 {[%clk 0:02:55]}  Bxd5 {[%clk 0:02:48]} 16. cxd5 {[%clk 0:02:54]}  c6 {[%clk 0:02:45]} 17. bxc6 {[%clk 0:02:39]}  bxc6 {[%clk 0:02:45]} 18. Qa4 {[%clk 0:02:37]}  Nb6 {[%clk 0:02:38]} 19. Rxb6 {[%clk 0:02:36]} 1-0


[Site "https://www.chess.com"]

[Event "Titled Tuesday Blitz August 08 Late 2023"]
[White "Kohler, Aran"]
[Black "Santos Flores, Alberto"]
[WhiteFideId "1002856"]
[BlackFideId "3601234"]
[WhiteElo "2250"]
[BlackElo "2554"]
[Result "0-1"]
[Round "1"]
[TimeControl "180+1"]
[Date "2023.08.08"]
[WhiteClock "0:00:44"]
[BlackClock "0:00:24"]
[Board "159"]

1. d4 {[%clk 0:03:00]}  d5 {[%clk 0:02:59]} 2. Bf4 {[%clk 0:02:58]}  Nf6 {[%clk 0:02:59]} 3. e3 {[%clk 0:02:58]}  c5 {[%clk 0:02:59]} 4. c3 {[%clk 0:02:58]}  Nc6 {[%clk 0:02:59]} 5. Nd2 {[%clk 0:02:56]}  Qb6 {[%clk 0:02:59]} 6. Qb3 {[%clk 0:02:57]}  c4 {[%clk 0:03:00]} 7. Qxb6 {[%clk 0:02:48]}  axb6 {[%clk 0:02:59]} 8. a3 {[%clk 0:02:46]}  Bf5 {[%clk 0:02:55]} 9. Rc1 {[%clk 0:02:45]}  e6 {[%clk 0:02:54]} 10. Ngf3 {[%clk 0:02:45]}  h6 {[%clk 0:02:53]} 11. Ne5 {[%clk 0:02:45]}  Nxe5 {[%clk 0:02:46]} 12. Bxe5 {[%clk 0:02:43]}  Be7 {[%clk 0:02:46]} 13. Be2 {[%clk 0:02:41]}  O-O {[%clk 0:02:46]} 14. O-O {[%clk 0:02:41]}  b5 {[%clk 0:02:46]} 15. f3 {[%clk 0:02:38]}  Bg6 {[%clk 0:02:39]} 16. Rce1 {[%clk 0:02:24]}  Nd7 {[%clk 0:02:37]} 17. Bg3 {[%clk 0:02:23]}  Nb6 {[%clk 0:02:37]} 18. Bd1 {[%clk 0:02:21]}  Na4 {[%clk 0:02:35]} 19. Bxa4 {[%clk 0:02:21]}  bxa4 {[%clk 0:02:36]} 20. e4 {[%clk 0:02:21]}  Bf6 {[%clk 0:02:24]} 21. Bd6 {[%clk 0:02:16]}  Rfd8 {[%clk 0:02:22]} 22. Bb4 {[%clk 0:02:16]}  Re8 {[%clk 0:01:58]} 23. e5 {[%clk 0:02:08]}  Bd8 {[%clk 0:01:54]} 24. f4 {[%clk 0:02:06]}  Bd3 {[%clk 0:01:50]} 25. Rf2 {[%clk 0:02:06]}  Be7 {[%clk 0:01:42]} 26. Re3 {[%clk 0:01:50]}  Bxb4 {[%clk 0:01:41]} 27. cxb4 {[%clk 0:01:50]}  Rec8 {[%clk 0:01:34]} 28. Nf3 {[%clk 0:01:45]}  Rc6 {[%clk 0:01:27]} 29. Ne1 {[%clk 0:01:42]}  Be4 {[%clk 0:01:26]} 30. Rc3 {[%clk 0:01:41]}  b5 {[%clk 0:01:25]} 31. g4 {[%clk 0:01:40]}  f6 {[%clk 0:01:15]} 32. exf6 {[%clk 0:01:34]}  gxf6 {[%clk 0:01:14]} 33. h4 {[%clk 0:01:34]}  Kf7 {[%clk 0:01:11]} 34. Kh2 {[%clk 0:01:34]}  Rcc8 {[%clk 0:01:11]} 35. g5 {[%clk 0:01:32]}  hxg5 {[%clk 0:01:10]} 36. fxg5 {[%clk 0:01:31]}  f5 {[%clk 0:01:08]} 37. Kg3 {[%clk 0:01:25]}  Kg6 {[%clk 0:01:06]} 38. Rh2 {[%clk 0:01:25]}  Rh8 {[%clk 0:01:05]} 39. Nf3 {[%clk 0:01:21]}  Bxf3 {[%clk 0:01:05]} 40. Kxf3 {[%clk 0:01:18]}  Rae8 {[%clk 0:01:02]} 41. Kf4 {[%clk 0:01:18]}  Rh7 {[%clk 0:00:59]} 42. h5+ {[%clk 0:01:12]}  Rxh5 {[%clk 0:00:57]} 43. Rxh5 {[%clk 0:01:12]}  Kxh5 {[%clk 0:00:58]} 44. Rh3+ {[%clk 0:01:12]}  Kg6 {[%clk 0:00:59]} 45. Rh6+ {[%clk 0:01:12]}  Kg7 {[%clk 0:00:59]} 46. Ke5 {[%clk 0:01:12]}  Re7 {[%clk 0:00:48]} 47. Rf6 {[%clk 0:01:07]}  Re8 {[%clk 0:00:48]} 48. Kd6 {[%clk 0:01:00]}  Rf8 {[%clk 0:00:33]} 49. Rxe6 {[%clk 0:00:58]}  f4 {[%clk 0:00:34]} 50. Re2 {[%clk 0:00:57]}  Rf5 {[%clk 0:00:32]} 51. Rf2 {[%clk 0:00:56]}  Kg6 {[%clk 0:00:30]} 52. Kc5 {[%clk 0:00:55]}  Kxg5 {[%clk 0:00:30]} 53. Kxb5 {[%clk 0:00:56]}  f3 {[%clk 0:00:30]} 54. Kc6 {[%clk 0:00:55]}  Kf4 {[%clk 0:00:30]} 55. b5 {[%clk 0:00:55]}  Ke3 {[%clk 0:00:30]} 56. Rf1 {[%clk 0:00:55]}  f2 {[%clk 0:00:30]} 57. Rc1 {[%clk 0:00:55]}  f1=Q {[%clk 0:00:29]} 58. Rxf1 {[%clk 0:00:54]}  Rxf1 {[%clk 0:00:30]} 59. Kxd5 {[%clk 0:00:54]}  Kd3 {[%clk 0:00:30]} 60. b6 {[%clk 0:00:53]}  Rf5+ {[%clk 0:00:25]} 61. Kc6 {[%clk 0:00:52]}  Kxd4 {[%clk 0:00:25]} 62. b7 {[%clk 0:00:52]}  Rf8 {[%clk 0:00:24]} 63. Kc7 {[%clk 0:00:44]}  Kd3 {[%clk 0:00:24]} 0-1


[Site "https://www.chess.com"]